bitfinex-derivatives/quotes_ETHF0:USTF0_20241102
["timestamp","ask_amount","ask_price","bid_price","bid_amount"]
[1730551765017,3.12787685,2488.1,2487.7,0.8959]
[1730551765217,3.40928685,2488.1,2487.9,0.28142]
[1730551765518,3.12787685,2488.1,2487.7,0.8959]
[1730551765723,3.12787685,2488.1,2488.0,0.28142]
[1730551766125,3.40927685,2488.1,2487.9,0.28143]
[1730551766320,3.12787685,2488.1,2487.9,0.28143]
[1730551766521,3.40928685,2488.1,2487.9,0.28143]
[1730551766822,3.12787685,2488.1,2487.9,0.28143]
[1730551767219,0.28142,2488.0,2487.8,3.48923]
[1730551767417,3.12787685,2487.9,2487.8,3.48923]
[1730551768212,7.14707685,2487.9,2487.3,4.25311711]
[1730551768420,3.12787685,2487.6,2487.5,0.28147]
[1730551768618,3.12787685,2487.6,2487.5,0.84403453]
[1730551769319,3.12787685,2487.6,2487.5,0.28147]
[1730551770422,0.28148,2487.5,2487.3,3.48929]
[1730551770614,3.12787685,2487.4,2487.3,3.48929]
[1730551771226,3.12787685,2487.4,2487.3,3.4893]
[1730551771424,3.12787685,2487.4,2486.7,1.04531711]
[1730551771425,10.81868289,2486.5,2486.4,1.56797566]
[1730551771623,3.2078,2486.5,2485.8,1.57485251]
[1730551771821,3.12787685,2486.5,2486.1,3.2078]
[1730551772018,3.12787685,2486.5,2486.2,0.28161]
[1730551772323,3.12787685,2486.5,2485.8,3.637]
[1730551772324,3.12787685,2486.5,2485.8,3.2078]
[1730551772630,6.33567685,2486.7,2486.6,0.28157]
[1730551772832,3.12787685,2486.9,2486.6,0.28157]
[1730551773122,3.12787685,2486.9,2486.2,3.2078]
[1730551773318,3.2078,2487.0,2486.4,0.2816]
[1730551773319,3.12787685,2486.5,2486.4,0.2816]
[1730551773518,3.48934,2487.0,2486.2,3.2078]
[1730551773519,3.12787685,2486.7,2486.6,0.28157]
[1730551775726,3.12787685,2486.7,2486.6,4.30317]
[1730551776725,3.12787685,2487.2,2487.1,0.28152]
[1730551776924,3.12787685,2487.2,2486.5,3.2078]
[1730551777124,3.12787685,2486.8,2486.7,0.28156]
[1730551777427,3.12787685,2486.8,2486.6,0.28156]
[1730551777727,3.12787685,2486.8,2486.7,0.28156]
[1730551780537,3.12787685,2487.0,2486.9,0.28154]
[1730551780729,3.12787685,2487.0,2486.8,0.454]
[1730551780925,3.12787685,2487.0,2486.9,0.28154]
[1730551781121,3.12787685,2487.0,2486.9,0.72514]
[1730551781541,3.12787685,2487.0,2486.9,0.4436]
[1730551781831,3.12787685,2487.0,2486.9,0.72514]
[1730551782031,3.12787685,2487.0,2486.9,0.4436]
[1730551782236,3.12787685,2487.0,2486.9,0.72514]
[1730551782447,3.12787685,2487.0,2486.9,0.4436]
[1730551782732,3.12787685,2487.0,2486.9,0.72514]
[1730551783332,3.12787685,2487.0,2486.9,0.4436]
[1730551783835,3.12787685,2487.0,2486.9,0.72514]
[1730551784722,3.12787685,2487.2,2487.1,0.28152]
[1730551789444,3.12787685,2487.2,2486.9,3.6514]
[1730551789629,3.12787685,2487.0,2486.9,3.6514]
[1730551789830,3.12787685,2487.0,2486.9,3.93293]
[1730551790637,3.12787685,2487.0,2486.9,3.6514]
[1730551790828,3.12787685,2487.0,2486.6,0.00090859]
[1730551791035,3.12787685,2487.0,2486.6,0.28247859]
[1730551791036,0.28155,2486.8,2486.6,0.28247859]
[1730551791235,0.28155,2486.8,2486.6,0.73017859]
[1730551791940,0.28154,2486.9,2486.7,0.28155]
[1730551792436,3.48934,2486.9,2486.6,0.73017859]
[1730551792632,3.48934,2486.9,2486.7,0.28156]
[1730551792832,3.2078,2486.9,2486.7,0.28156]
[1730551793038,3.48934,2486.9,2486.7,0.28156]
[1730551793642,3.2078,2486.9,2486.7,0.28156]
[1730551793839,3.48934,2486.9,2486.7,0.28156]
[1730551794342,3.2078,2486.9,2486.6,0.44860859]
[1730551794842,3.12787685,2486.7,2486.6,0.73017859]
[1730551796336,3.2078,2486.9,2486.8,0.28155]
[1730551796736,3.48934,2486.9,2486.7,0.28156]
[1730551797242,3.2078,2486.9,2486.7,0.28156]
[1730551797642,3.2078,2486.9,2486.6,0.44860859]
[1730551797848,3.48934,2486.9,2486.7,0.28156]
[1730551798042,3.2078,2486.9,2486.6,0.44860859]
[1730551798238,6.33567685,2487.2,2486.6,0.44860859]
[1730551798542,6.33567685,2487.2,2486.7,0.70391]
[1730551798748,6.61718685,2487.2,2487.0,0.28152]
[1730551798941,6.33567685,2487.2,2486.8,0.4621]
[1730551799143,0.28152,2487.1,2486.9,0.28154]
[1730551799343,3.12787685,2487.0,2486.9,0.28154]
[1730551799546,3.12787685,2487.0,2486.8,0.4621]
[1730551799739,3.12787685,2487.0,2486.9,0.28154]
[1730551800151,3.40940685,2487.0,2486.8,0.74364]
[1730551800446,6.33567685,2487.2,2486.8,0.4621]
[1730551800641,6.33567685,2487.2,2487.1,0.28152]
[1730551800843,6.33567685,2487.2,2487.0,0.28152]
[1730551800844,3.40938685,2487.2,2487.0,0.28152]
[1730551801044,3.12787685,2487.2,2487.1,0.70782]
[1730551801246,3.12787685,2487.2,2487.1,0.4263]
[1730551801649,3.12787685,2487.2,2487.1,0.70782]
[1730551801952,3.40938685,2487.2,2487.1,0.4263]
[1730551802243,3.40938685,2487.2,2486.6,0.00090859]
[1730551802244,0.28156,2486.8,2486.6,0.00090859]
[1730551802448,3.12787685,2486.9,2486.7,0.28156]
[1730551802649,3.40942685,2486.9,2486.6,0.42720859]
[1730551802849,3.12787685,2486.9,2486.8,0.28155]
[1730551803051,3.12787685,2486.9,2486.6,0.42720859]
[1730551803249,3.12787685,2486.9,2486.8,0.28155]
[1730551803749,3.40941685,2486.9,2486.6,0.42720859]
[1730551803955,3.40941685,2486.9,2486.7,0.28156]
[1730551804458,3.40942685,2486.9,2486.7,0.28156]
[1730551804650,3.40942685,2486.9,2486.6,0.70877859]
[1730551804651,0.28156,2486.8,2486.6,0.70877859]
[1730551804953,0.28156,2486.8,2486.4,0.4288]
[1730551804954,6.33567685,2486.7,2486.1,0.28163]
[1730551805151,6.33567685,2486.7,2486.0,3.2078]
[1730551805152,0.28163,2486.1,2486.0,3.6393]
[1730551805445,0.28163,2486.1,2486.0,0.4315]
[1730551805747,3.12787685,2486.2,2486.0,0.4315]
[1730551805949,3.2078,2486.4,2486.1,0.28163]
[1730551806150,3.12787685,2486.2,2486.0,0.4315]
[1730551806451,0.28163,2486.1,2486.0,0.4315]
[1730551806750,3.48943,2486.1,2486.0,0.4315]
[1730551806948,0.28165,2485.9,2485.8,0.70076]
[1730551807142,3.40952685,2485.9,2485.8,1.42943626]
[1730551807345,0.28166,2485.8,2485.7,0.00521587]
[1730551807547,0.28166,2485.8,2485.2,0.4578]
[1730551807548,0.18166,2485.8,2485.2,0.4578]
[1730551807848,3.4895,2485.6,2485.5,1.046]
[1730551808051,3.4895,2485.6,2485.5,1.5986735]
[1730551808249,7.2311,2485.6,2485.5,1.046]
[1730551808646,6.9494,2485.6,2484.6,0.4326]
[1730551808846,6.33567685,2485.2,2485.0,0.28175]
[1730551809043,1.55388452,2485.7,2485.1,0.55260515]
[1730551809044,3.2078,2485.6,2485.1,0.55260515]
[1730551809251,0.28171,2485.4,2485.1,0.83429401]
[1730551809450,6.33567685,2485.2,2484.6,0.4326]
[1730551809750,6.33567685,2485.2,2485.1,0.28174]
[1730551810055,3.2078,2485.2,2485.1,0.55228983]
[1730551810354,3.1078,2485.2,2485.0,0.28175]
[1730551810559,3.1078,2485.2,2484.9,0.28176]
[1730551810849,3.1078,2485.2,2485.0,0.55199493]
[1730551811151,3.02787685,2485.1,2484.8,0.28178]
[1730551811451,6.33567685,2484.9,2484.0,3.91247]
[1730551811655,3.12787685,2484.5,2484.1,0.55178923]
[1730551811848,3.2078,2484.4,2484.3,0.28183]
[1730551812049,3.1078,2484.4,2484.3,4.85845716]
[1730551812355,6.33567685,2485.0,2484.4,0.70457]
[1730551812659,3.12787685,2485.2,2484.5,1.43872716]
[1730551812847,3.12787685,2485.2,2485.1,0.28174]
[1730551813455,3.12787685,2485.2,2484.9,0.28176]
[1730551813657,6.33567685,2485.0,2484.8,0.28177]
[1730551813955,3.2078,2485.3,2484.6,0.70451]
[1730551814156,3.2078,2485.3,2485.2,0.28173]
[1730551814955,3.2078,2485.6,2485.2,4.024]
[1730551815150,3.12787685,2485.7,2485.6,0.28169]
[1730551815558,3.12787685,2485.7,2485.6,4.30489]
[1730551815853,3.12787685,2485.7,2485.6,0.28169]
[1730551816060,3.12787685,2485.7,2485.6,4.0232]
[1730551816252,3.12787685,2485.7,2485.5,0.28169]
[1730551816452,3.2078,2485.6,2485.3,0.8848]
[1730551816653,3.12787685,2485.5,2485.4,0.2817]
[1730551817448,3.12787685,2485.5,2485.4,0.28171]
[1730551818053,3.12787685,2485.5,2485.3,0.8848]
[1730551818054,3.12787685,2485.5,2485.3,1.16651]
[1730551818249,3.12787685,2485.5,2485.4,0.28171]
[1730551819161,7.15107685,2485.5,2485.2,0.28172]
[1730551819359,7.15107685,2485.5,2484.9,0.28176]
[1730551819360,0.28174,2485.2,2484.9,0.28176]
[1730551819550,0.4513,2485.4,2484.8,0.8775]
[1730551819551,6.33567685,2485.0,2484.8,0.8775]
[1730551819753,6.05397685,2485.0,2484.9,0.28177]
[1730551820461,2.84617685,2485.0,2484.9,0.28177]
[1730551820761,3.2078,2485.3,2485.1,0.28174]
[1730551820762,3.12787685,2485.2,2485.1,0.28174]
[1730551821755,3.12787685,2485.2,2485.1,4.30574]
[1730551822357,0.4513,2485.7,2485.2,0.98607]
[1730551822358,3.2078,2485.6,2485.2,0.98607]
[1730551822552,3.2078,2485.6,2485.5,0.2817]
[1730551822766,3.12787685,2486.0,2485.9,0.28165]
[1730551823050,3.2078,2486.2,2486.1,0.28163]
[1730551823257,3.12787685,2486.4,2486.3,0.28161]
[1730551823451,3.12787685,2486.7,2486.0,3.2078]
[1730551823657,3.2078,2486.8,2486.7,0.28156]
[1730551823858,3.2078,2486.8,2486.3,3.2078]
[1730551823859,3.12787685,2487.1,2486.5,3.91177]
[1730551824057,3.12787685,2487.4,2486.7,0.70389]
[1730551824257,3.12787685,2487.4,2487.3,0.2815]
[1730551824457,3.2078,2487.8,2487.3,4.02]
[1730551824660,3.86111924,2487.9,2487.8,0.28144]
[1730551825370,7.06891924,2488.2,2487.4,0.70369]
[1730551825553,7.06891924,2488.2,2487.9,0.28142]
[1730551825757,5.25724789,2489.0,2487.6,3.2078]
[1730551825758,7.06891924,2488.5,2487.6,3.2078]
[1730551826060,7.06891924,2488.5,2487.6,3.91146]
[1730551826264,7.06891924,2488.5,2488.4,0.28137]
[1730551826459,3.2078,2488.5,2488.4,0.28137]
[1730551826659,3.2078,2488.5,2488.4,4.29977]
[1730551827357,3.86111924,2488.7,2488.4,4.0184]
[1730551827562,3.86111924,2488.7,2488.6,0.28135]
[1730551828066,1.046,2489.3,2488.7,0.28134]
[1730551828067,3.86111924,2489.0,2488.7,0.28134]
[1730551828258,3.2078,2489.1,2489.0,0.2813]
[1730551828562,3.2078,2489.1,2489.0,4.2989]
[1730551828762,3.86111924,2489.5,2489.0,4.0176]
[1730551828959,7.06891924,2489.3,2489.1,0.28129]
[1730551829266,3.86111924,2489.3,2488.7,1.046]
[1730551829566,3.86111924,2489.3,2489.2,0.28128]
[1730551829768,3.2078,2489.6,2489.5,0.28125]
[1730551830073,1.32619,2490.1,2488.8,4.0176]
[1730551830074,3.2078,2490.0,2489.0,3.2078]
[1730551830362,3.2078,2490.0,2489.9,0.2812]
[1730551830562,0.28114,2490.5,2489.4,3.86111924]
[1730551830563,3.2078,2490.5,2489.4,3.86111924]
[1730551830765,3.86111924,2490.7,2490.3,0.28115]
[1730551831067,3.2078,2490.8,2490.6,0.28112]
[1730551831266,3.2078,2490.8,2490.7,0.28111]
[1730551831469,3.2078,2490.8,2490.0,0.46]
[1730551831771,3.86111924,2490.7,2490.0,0.46]
[1730551832067,3.86111924,2490.7,2490.4,0.28114]
[1730551832270,3.2078,2490.8,2490.2,0.28116]
[1730551832271,3.86111924,2490.5,2490.2,0.28116]
[1730551832463,7.06891924,2490.5,2490.1,0.28117]
[1730551832662,7.06891924,2490.2,2489.9,0.2812]
[1730551833165,7.06891924,2490.2,2489.4,1.045]
[1730551833361,7.06891924,2490.2,2489.8,0.28121]
[1730551833667,7.06891924,2490.2,2489.9,0.28119]
[1730551833870,7.06891924,2490.2,2489.7,0.28121]
[1730551834169,7.06891924,2489.9,2489.6,0.28123]
[1730551834472,7.06891924,2489.9,2489.2,0.4376]
[1730551834473,3.86111924,2489.9,2489.2,0.4376]
[1730551834776,7.06891924,2489.9,2489.6,0.28123]
[1730551835277,7.06891924,2489.9,2489.5,0.28124]
[1730551835573,7.06891924,2490.2,2489.2,0.4376]
[1730551835762,7.06891924,2490.2,2489.7,0.28121]
[1730551835971,7.06891924,2490.2,2489.8,0.28121]
[1730551836668,7.06891924,2490.2,2489.7,0.28122]
[1730551836868,7.06891924,2490.2,2489.8,0.28121]
[1730551837263,7.06891924,2490.2,2489.2,1.4826]
[1730551837464,7.06891924,2489.9,2489.2,1.4826]
[1730551837670,7.06891924,2489.9,2489.4,0.28125]
[1730551837969,7.06891924,2489.9,2489.2,0.4376]
[1730551838168,3.2078,2489.9,2489.2,0.4376]
[1730551838865,3.2078,2489.9,2489.8,0.28121]
[1730551839066,3.2078,2490.2,2489.4,3.2078]
[1730551839576,3.2078,2490.2,2490.1,0.28118]
[1730551840469,3.2078,2490.2,2489.9,0.2812]
[1730551841069,3.86111924,2490.5,2490.0,4.016]
[1730551841070,3.2078,2490.5,2490.0,4.016]
[1730551841272,3.2078,2490.5,2490.4,0.28114]
[1730551842172,3.2078,2490.5,2490.4,4.29634]
[1730551842574,3.2078,2490.8,2490.4,4.0152]
[1730551842774,3.2078,2490.8,2490.1,0.4377]
[1730551842975,7.06891924,2490.8,2490.1,0.4377]
[1730551843179,3.2078,2490.5,2489.9,0.4566]
[1730551843377,3.2078,2490.5,2490.2,0.28116]
[1730551843680,3.2078,2490.5,2490.1,0.28117]
[1730551843681,3.48893,2490.5,2490.1,0.28117]
[1730551843982,3.48893,2490.5,2489.9,0.4566]
[1730551843983,3.2078,2490.5,2490.3,0.28115]
[1730551844169,3.2078,2490.5,2489.9,0.4566]
[1730551844369,3.2078,2490.5,2489.7,3.2078]
[1730551844370,7.06891924,2490.5,2489.7,3.2078]
[1730551844778,7.06891924,2490.5,2489.9,0.2812]
[1730551844988,7.06891924,2490.5,2489.8,0.28121]
[1730551845184,0.28117,2490.2,2489.8,0.28121]
[1730551845394,0.28117,2490.2,2489.3,3.2078]
[1730551845395,7.06891924,2490.2,2489.3,3.2078]
[1730551845690,3.2078,2490.2,2489.3,3.2078]
[1730551845882,3.2078,2490.2,2489.9,0.28119]
[1730551846080,3.2078,2490.2,2490.0,0.28119]
[1730551846574,3.2078,2490.2,2489.6,0.28123]
[1730551846778,3.2078,2490.2,2489.9,0.28119]
[1730551847179,3.2078,2490.2,2490.0,0.28119]
[1730551847788,3.2078,2490.2,2489.4,1.13815]
[1730551847789,3.2078,2490.2,2490.1,0.28118]
[1730551848186,3.2078,2490.8,2490.5,0.28113]
[1730551848483,3.2078,2490.8,2489.9,3.6617]
[1730551848689,3.2078,2490.8,2490.5,0.28113]
[1730551848885,3.2078,2490.8,2490.0,0.70298]
[1730551849196,3.2078,2490.5,2490.1,0.4263]
[1730551849391,3.2078,2490.5,2490.3,0.28115]
[1730551849897,3.2078,2490.8,2490.1,0.4263]
[1730551850083,3.2078,2490.8,2490.5,0.28113]
[1730551850698,3.2078,2490.8,2490.1,0.4263]
[1730551850898,3.2078,2490.8,2490.7,0.28111]
[1730551851495,3.2078,2490.8,2490.6,0.28112]
[1730551851702,3.4889,2490.8,2490.6,0.28112]
[1730551851996,3.2078,2490.8,2490.2,0.70293]
[1730551852193,3.2078,2490.8,2490.6,0.28112]
[1730551852996,3.4889,2490.8,2490.6,0.28112]
[1730551853197,3.2078,2490.8,2490.2,0.70293]
[1730551853392,3.2078,2490.8,2490.7,0.28111]
[1730551855807,3.2078,2490.8,2490.7,4.29631]
[1730551856800,0.28102,2491.6,2490.7,4.0152]
[1730551857001,3.4888,2491.7,2491.4,0.28103]
[1730551857602,3.4888,2491.7,2491.3,0.28104]
[1730551857603,0.28101,2491.6,2491.3,0.28104]
[1730551857810,0.28106,2491.2,2490.9,0.28109]
[1730551858310,0.28104,2491.3,2490.7,0.28111]
[1730551858511,3.48887,2491.1,2490.8,0.28109]
[1730551859006,3.2078,2491.4,2490.6,1.7278]
[1730551859207,3.48884,2491.4,2491.1,0.28106]
[1730551859406,3.2078,2491.7,2490.7,0.70278]
[1730551859607,3.2078,2491.4,2490.7,0.70278]
[1730551859806,3.2078,2491.4,2491.2,0.28105]
[1730551860003,3.2078,2491.4,2490.7,0.70278]
[1730551860004,3.2078,2491.3,2490.8,0.4213]
[1730551860313,3.2078,2491.3,2491.1,0.28106]
[1730551860611,3.86111924,2491.7,2490.6,1.025]
[1730551860612,3.2078,2491.5,2490.6,1.025]
[1730551860811,3.48886,2491.2,2490.9,0.28108]
[1730551861114,3.2078,2491.2,2490.4,1.72786]
[1730551861312,0.28107,2491.1,2490.4,1.72786]
[1730551861504,3.2078,2491.2,2490.7,0.28111]
[1730551861505,0.28108,2491.0,2490.7,0.28111]
[1730551861705,0.28108,2491.0,2490.4,1.025]
[1730551861907,0.28107,2491.1,2490.8,0.2811]
[1730551862113,3.2078,2491.2,2490.2,8.51521924]
[1730551862303,0.28115,2490.4,2489.8,4.61384]
[1730551862615,0.28119,2490.1,2489.8,0.2812]
[1730551862810,3.2078,2490.2,2489.8,0.28121]
[1730551863011,3.2078,2490.2,2489.5,0.4327]
[1730551863509,0.28118,2490.1,2489.8,0.2812]
[1730551864017,3.2078,2490.2,2490.0,0.28119]
[1730551864311,3.2078,2490.2,2490.1,0.28118]
[1730551864607,3.86111924,2490.8,2489.8,0.70304]
[1730551864608,3.2078,2490.7,2489.8,0.70304]
[1730551864810,3.2078,2490.7,2489.8,0.28121]
[1730551864811,0.28118,2490.1,2489.8,0.28121]
[1730551865009,3.2078,2490.1,2489.4,0.4631]
[1730551865208,3.86111924,2490.3,2489.4,0.4631]
[1730551865209,3.2078,2490.0,2489.4,0.4631]
[1730551865410,3.489,2490.0,2489.7,0.28122]
[1730551865919,3.2078,2490.0,2489.9,0.2812]
[1730551866413,0.28117,2490.2,2489.9,0.2812]
[1730551866817,3.2078,2490.0,2489.4,0.4631]
[1730551867213,3.489,2490.0,2489.7,0.28122]
[1730551867921,0.28117,2490.2,2489.9,0.2812]
[1730551868111,3.489,2490.0,2489.4,0.4631]
[1730551868307,3.489,2490.0,2489.7,0.28122]
[1730551868816,3.2078,2490.0,2489.4,0.4631]
[1730551869010,0.28118,2490.2,2489.8,0.2812]
[1730551869211,3.48899,2490.0,2489.7,0.28121]
[1730551869510,0.2812,2489.9,2489.8,0.54642327]
[1730551869912,0.28122,2489.8,2489.5,0.28124]
[1730551870218,3.2078,2490.0,2489.6,1.42198625]
[1730551870514,0.28121,2489.9,2489.7,0.54726859]
[1730551870815,3.489,2490.0,2489.8,0.82847859]
[1730551871020,0.28122,2489.8,2489.4,0.4631]
[1730551871320,3.48903,2489.6,2489.5,1.42422537]
[1730551871516,3.48903,2489.6,2489.5,0.54777899]
[1730551872115,3.48903,2489.6,2489.3,0.28126]
[1730551872116,0.28125,2489.5,2489.3,0.28126]
[1730551872315,0.28125,2489.5,2489.4,1.42547758]
[1730551872621,0.28125,2489.5,2489.4,1.42534782]
[1730551872812,0.28125,2489.5,2489.4,1.42533934]
[1730551873121,0.28125,2489.5,2489.4,1.42534198]
[1730551874619,0.28125,2489.5,2489.4,0.54826024]
[1730551874819,0.2813,2489.0,2488.9,0.28131]
[1730551875013,3.4891,2489.0,2488.9,0.87248255]
[1730551875319,0.70318,2489.4,2488.5,1.55613844]
[1730551875320,3.2078,2489.1,2488.5,1.55613844]
[1730551875519,3.2078,2488.6,2488.5,0.28135]
[1730551875919,3.2078,2488.6,2488.5,1.14703688]
[1730551876222,3.2078,2488.6,2488.5,0.28136]
[1730551877030,0.28133,2488.8,2488.6,0.28134]
[1730551877519,3.2078,2488.9,2488.4,0.28136]
[1730551877520,0.28135,2488.6,2488.4,0.28136]
[1730551877723,0.28135,2488.6,2488.4,0.28137]
[1730551877918,3.2078,2488.5,2488.4,0.28137]
[1730551878119,3.2078,2488.5,2488.3,0.72117]
[1730551878319,0.28135,2488.6,2488.3,0.72117]
[1730551878517,3.2078,2488.8,2488.3,0.4398]
[1730551878718,3.2078,2488.5,2487.6,1.55613844]
[1730551878922,3.2078,2488.5,2487.7,0.86441258]
[1730551878923,3.48923,2487.9,2487.7,0.86441258]
[1730551879222,3.48923,2487.9,2487.5,0.4371]
[1730551879223,3.2078,2488.0,2487.8,0.28143]
[1730551879416,3.2078,2488.0,2487.5,0.4371]
[1730551879417,3.2078,2488.0,2487.9,0.28143]
[1730551879821,0.28137,2488.4,2488.1,0.2814]
[1730551880020,0.28137,2488.4,2487.6,3.91144]
[1730551880021,3.2078,2488.6,2487.6,3.91144]
[1730551880427,3.48919,2488.3,2488.0,0.28141]
[1730551881117,0.28141,2488.1,2487.8,0.28143]
[1730551881318,3.2078,2488.3,2487.6,0.28145]
[1730551881319,0.28143,2488.0,2487.6,0.28145]
[1730551881715,3.48924,2487.9,2487.6,0.28146]
[1730551882015,3.2078,2487.9,2487.5,0.4371]
[1730551882420,0.28144,2487.8,2487.5,0.71857]
[1730551882623,3.2078,2487.9,2487.3,3.2078]
[1730551882928,3.48923,2487.9,2487.6,0.28146]
[1730551883121,3.6365,2488.2,2487.8,0.28144]
[1730551883323,3.9179,2488.2,2487.8,0.28144]
[1730551883522,3.9179,2488.2,2487.3,3.91153]
[1730551883523,3.6365,2488.2,2487.3,3.91153]
[1730551883825,3.9179,2488.2,2487.9,0.28142]
[1730551884216,3.9179,2488.2,2488.0,0.28142]
[1730551884428,3.9179,2488.2,2487.5,0.70369]
[1730551884429,3.9179,2488.2,2487.9,0.28142]
[1730551884924,3.6365,2488.2,2487.6,0.4653]
[1730551885127,3.48923,2487.9,2487.6,0.74675]
[1730551885726,3.2078,2487.9,2487.7,0.28144]
[1730551885923,3.2078,2487.9,2487.6,0.4653]
[1730551885924,0.28145,2487.8,2487.5,0.28147]
[1730551886126,3.2078,2487.9,2487.3,3.2078]
[1730551886326,3.2078,2487.9,2487.6,0.28145]
[1730551886327,3.48923,2487.9,2487.6,0.28145]
[1730551886522,0.28144,2487.8,2487.6,0.28145]
[1730551886829,0.28144,2487.8,2487.5,0.28147]
[1730551887223,0.28145,2487.7,2487.5,0.28147]
[1730551887422,0.28144,2487.8,2487.5,0.28147]
[1730551888323,3.2078,2487.9,2487.3,3.2078]
[1730551888523,0.28143,2487.9,2487.6,0.28145]
[1730551888723,7.49761924,2488.2,2487.5,0.28147]
[1730551888724,0.28141,2488.1,2487.5,0.28147]
[1730551888925,0.2814,2488.1,2487.8,0.28143]
[1730551889221,0.2814,2488.1,2487.4,0.70372]
[1730551889222,0.28145,2487.7,2487.3,3.2078]
[1730551889428,3.2078,2487.9,2487.3,3.2078]
[1730551889930,3.2078,2487.9,2487.5,0.28146]
[1730551890234,0.28145,2487.8,2487.5,0.28146]
[1730551890732,0.28144,2487.8,2487.5,0.28146]
[1730551891435,3.2078,2487.9,2487.3,3.2078]
[1730551891729,3.2078,2487.9,2487.2,0.4653]
[1730551891730,0.28149,2487.4,2487.2,0.2815]
[1730551891929,0.2815,2487.3,2486.9,0.4303]
[1730551892120,3.86111924,2487.6,2487.0,0.28153]
[1730551892121,3.2078,2487.2,2487.0,0.28153]
[1730551892326,0.28152,2487.1,2486.9,0.71184]
[1730551892528,3.2078,2487.2,2486.6,0.28157]
[1730551892529,0.28154,2486.9,2486.6,0.28157]
[1730551892723,3.2078,2486.9,2486.6,0.28157]
[1730551892929,0.27105,2486.8,2486.6,0.28157]
[1730551893128,3.2078,2486.9,2486.4,3.2078]
[1730551893429,3.48934,2486.9,2486.7,0.28155]
[1730551893641,3.2078,2486.9,2486.8,0.28155]
[1730551893831,3.2078,2486.9,2486.4,3.2078]
[1730551894031,0.28155,2486.8,2486.6,0.28157]
[1730551894427,0.28157,2486.7,2486.3,0.28161]
[1730551894637,3.2078,2486.6,2486.2,0.4402]
[1730551894827,3.86111924,2487.0,2486.2,0.4402]
[1730551894828,3.2078,2486.9,2486.2,0.4402]
[1730551895332,3.2078,2486.9,2486.5,0.28158]
[1730551895333,0.28156,2486.7,2486.5,0.28158]
[1730551895534,3.2078,2486.9,2486.7,0.28156]
[1730551896035,3.48935,2486.9,2486.6,0.28157]
[1730551896735,0.2816,2486.4,2486.1,0.72192]
[1730551896935,3.4894,2486.4,2486.2,0.28162]
[1730551897435,0.28161,2486.3,2486.1,0.72193]
[1730551897735,3.86111924,2486.3,2486.1,0.72193]
[1730551897937,3.86111924,2486.3,2486.2,0.28162]
[1730551898127,3.86111924,2486.3,2486.1,0.28163]
[1730551898128,4.14272924,2486.3,2486.1,0.28163]
[1730551898325,3.86111924,2486.3,2485.9,3.2078]
[1730551898532,0.28167,2485.8,2484.9,0.70442]
[1730551898734,3.2078,2486.0,2485.9,0.28165]
[1730551899142,3.86111924,2486.3,2485.4,3.2078]
[1730551899143,7.06891924,2486.3,2485.4,3.2078]
[1730551899326,7.06891924,2486.3,2485.6,0.70423]
[1730551899327,7.35052924,2486.3,2485.6,0.70423]
[1730551899533,7.06891924,2486.3,2486.1,0.28163]
[1730551899934,7.06891924,2486.3,2485.7,0.9082]
[1730551900136,7.06891924,2486.3,2486.2,0.28162]
[1730551900440,7.06891924,2486.3,2486.1,0.28162]
[1730551900634,7.06891924,2486.3,2486.2,0.28162]
[1730551901538,7.06891924,2486.3,2485.8,0.28166]
[1730551901837,7.06891924,2486.3,2486.2,0.28162]
[1730551902235,7.06891924,2486.3,2485.7,4.116]
[1730551902536,7.35052924,2486.3,2486.1,0.28162]
[1730551902945,7.06891924,2486.3,2485.7,4.116]
[1730551903241,7.06891924,2486.3,2486.2,0.28162]
[1730551904038,7.06891924,2486.6,2486.5,0.28159]
[1730551905540,0.28153,2487.0,2486.4,0.439]
[1730551905541,3.86111924,2486.9,2486.4,0.439]
[1730551905842,4.14266924,2486.9,2486.8,0.28155]
[1730551906030,3.86111924,2486.9,2486.8,0.28155]
[1730551906737,4.14265924,2486.9,2486.8,0.28155]
[1730551907142,3.86111924,2487.1,2486.9,0.28154]
[1730551907338,3.86111924,2487.1,2486.6,0.70392]
[1730551907339,3.86111924,2487.1,2487.0,0.28153]
[1730551907840,3.2078,2487.3,2487.2,0.28151]
[1730551908043,3.86111924,2487.4,2486.9,0.70385]
[1730551908347,3.2078,2487.6,2487.5,0.28147]
[1730551909042,3.2078,2487.9,2487.8,0.28144]
[1730551909242,3.86111924,2488.0,2487.6,0.9013]
[1730551909544,7.06891924,2488.2,2488.1,0.2814]
[1730551909742,7.06891924,2488.2,2487.6,0.9013]
[1730551910252,7.06891924,2488.2,2488.1,0.2814]
[1730551910545,7.06891924,2488.2,2488.0,0.28141]
[1730551910746,7.06891924,2488.2,2488.1,0.2814]
[1730551911148,7.06891924,2488.2,2487.6,0.9013]
[1730551911444,3.86111924,2487.7,2487.4,3.2078]
[1730551911655,3.86111924,2487.7,2486.3,4.71894181]
[1730551911656,3.2078,2487.5,2487.3,0.28149]
[1730551911843,3.86111924,2487.4,2487.3,0.28149]
[1730551912752,3.86111924,2487.7,2487.5,0.28147]
[1730551912950,3.86111924,2487.7,2487.6,0.28146]
[1730551913150,3.86111924,2487.7,2487.1,0.8856]
[1730551913345,3.2078,2487.6,2487.4,0.28148]
[1730551913851,3.2078,2487.6,2487.3,0.28149]
[1730551914158,3.2078,2487.6,2487.4,0.28148]
[1730551914353,3.86111924,2487.7,2487.6,0.28146]
[1730551915051,3.2078,2487.9,2487.1,1.58938]
[1730551915355,7.06891924,2488.2,2488.1,0.2814]
[1730551915551,7.06891924,2488.2,2488.0,0.28141]
[1730551916146,7.35030924,2488.2,2487.9,0.28142]
[1730551916541,3.86111924,2488.0,2487.6,0.28145]
[1730551916740,0.28143,2487.9,2487.3,3.2078]
[1730551916957,3.2078,2487.8,2487.6,0.28146]